bitfinex/quotes_ETHUSD_20260208
["timestamp","ask_amount","ask_price","bid_price","bid_amount"]
[1770584403650,0.002,2106.2,2106.1,2.02857351]
[1770584405966,0.002,2106.2,2106.0,0.001]
[1770584408176,0.002,2106.4,2106.1,1.17846555]
[1770584408362,1.18670576,2106.7,2106.0,0.001]
[1770584408670,1.52549296,2106.8,2106.1,1.17846555]
[1770584408880,1.52548492,2106.8,2106.1,1.17846555]
[1770584409861,0.33883568,2106.8,2106.4,1.17846555]
[1770584410061,0.33883568,2106.8,2106.4,4.49646555]
[1770584410237,0.33883568,2106.8,2106.5,1.17846555]
[1770584410439,0.33883568,2106.8,2106.4,3.318]
[1770584410934,0.33883568,2106.8,2106.4,4.49646555]
[1770584411362,0.33883568,2106.8,2106.5,1.17846555]
[1770584414152,1.18855629,2107.0,2106.6,1.17846555]
[1770584414153,1.1885217,2107.0,2106.6,1.17846555]
[1770584414352,0.002,2107.0,2106.6,1.17846555]
[1770584416085,0.002,2107.0,2106.6,2.36520622]
[1770584416252,0.002,2107.0,2106.7,1.15017451]
[1770584416750,0.002,2107.0,2106.7,2.33684828]
[1770584417059,0.002,2107.0,2106.8,1.15017451]
[1770584418383,0.002,2107.1,2107.0,1.15017451]
[1770584418884,0.002,2107.1,2106.9,3.318]
[1770584419177,0.92204244,2107.1,2106.4,1.15017451]
[1770584419668,0.002,2107.1,2106.5,4.22000108]
[1770584419864,0.002,2107.1,2106.6,1.15017451]
[1770584420046,0.002,2107.1,2106.6,4.22000108]
[1770584420370,0.002,2107.1,2106.6,3.06982657]
[1770584420956,1.1884648,2107.1,2106.6,3.06982657]
[1770584421347,1.1884648,2107.1,2106.4,1.15017451]
[1770584421673,1.1884648,2107.1,2106.5,3.06982657]
[1770584422247,1.1884648,2107.1,2106.5,4.22000108]
[1770584423261,10.23818603,2107.1,2106.5,3.06982657]
[1770584423489,0.92503132,2107.0,2106.5,3.06982657]
[1770584423982,0.92624361,2106.9,2106.2,0.001]
[1770584424169,0.92624361,2106.9,2106.3,3.06982657]
[1770584424674,0.92624361,2106.9,2106.4,3.06982657]
[1770584424979,0.92624361,2106.9,2106.3,3.06982657]
[1770584425188,1.18663375,2106.8,2106.3,3.06982657]
[1770584425479,1.18663375,2106.8,2106.2,1.15117451]
[1770584425480,1.18663375,2106.8,2106.4,3.06982657]
[1770584425684,1.18652112,2107.0,2106.4,1.15017451]
[1770584425872,1.18652112,2107.0,2106.5,3.06982657]
[1770584426181,1.18652112,2107.0,2106.5,4.22000108]
[1770584426972,1.18652112,2107.0,2106.7,0.001]
[1770584427179,0.002,2106.9,2106.7,0.001]
[1770584427355,0.002,2106.9,2106.7,3.07082657]
[1770584427772,4.74801703,2107.1,2106.7,0.001]
[1770584427773,0.002,2107.1,2106.7,0.001]
[1770584427954,0.002,2107.1,2106.8,4.21800108]
[1770584428155,0.002,2107.1,2106.7,3.00882657]
[1770584428361,8.12668991,2107.1,2106.7,0.001]
[1770584428565,9.05764286,2107.1,2106.7,0.001]
[1770584429384,9.10405502,2106.9,2106.5,0.001]
[1770584429551,1.18652112,2107.0,2106.5,3.00882657]
[1770584429748,0.0472668,2106.9,2106.6,3.00782657]
[1770584430177,1.18652112,2107.0,2106.5,0.001]
[1770584435278,4.74808448,2107.1,2106.5,0.001]
[1770584435480,0.002,2107.1,2106.5,1.15117451]
[1770584437596,0.002,2107.1,2106.5,1.18779154]
[1770584437793,0.002,2107.1,2106.6,1.15017451]
[1770584438089,0.002,2107.1,2106.5,0.001]
[1770584439163,0.002,2107.1,2106.5,1.15117451]
[1770584439590,0.002,2107.1,2106.7,0.001]
[1770584439890,0.002,2106.9,2106.7,0.001]
[1770584440962,9.07155172,2106.9,2106.5,0.001]
[1770584442160,2.17974274,2106.8,2106.5,0.001]
[1770584442360,0.94584219,2106.7,2106.2,0.001]
[1770584442785,0.94584219,2106.5,2106.2,0.001]
[1770584443187,0.0472668,2106.4,2106.0,0.001]
[1770584443487,0.94584219,2106.5,2106.0,0.001]
[1770584443703,0.99408365,2106.2,2105.9,0.001]
[1770584443861,9.07150676,2105.9,2105.6,0.001]
[1770584444061,1.18719726,2105.8,2105.4,0.001]
[1770584444275,1.18719726,2105.8,2105.2,0.001]
[1770584444681,1.23446406,2105.8,2105.2,0.001]
[1770584445292,1.18719726,2105.8,2105.2,0.001]
[1770584445463,1.18719726,2105.8,2105.2,1.09887104]
[1770584445660,1.18719726,2105.8,2105.2,0.001]
[1770584445864,0.99693968,2105.6,2105.2,0.001]
[1770584446073,1.18736642,2105.5,2105.0,0.001]
[1770584446479,1.18736642,2105.5,2104.8,1.09887104]
[1770584446480,0.99786687,2105.3,2104.8,0.001]
[1770584448367,0.99786687,2105.3,2104.1,4.7525729]
[1770584448368,0.0472668,2105.0,2104.2,1.09787104]
[1770584448568,4.31769351,2105.0,2104.2,1.09787104]
[1770584449294,0.0472668,2104.7,2103.9,1.09787104]
[1770584449493,0.0472668,2104.7,2103.7,1.09787104]
[1770584449494,0.95332692,2104.6,2103.7,1.09787104]
[1770584449694,3.318,2104.5,2103.8,1.09787104]
[1770584449994,0.0472668,2104.4,2103.6,6.96024417]
[1770584450165,0.0472668,2104.1,2103.6,5.86237313]
[1770584450363,1.18821292,2104.0,2103.2,1.09787104]
[1770584450586,4.80011851,2104.1,2103.2,1.09787104]
[1770584450587,3.318,2104.5,2103.3,1.09787104]
[1770584450779,1.18793062,2104.5,2103.3,1.09787104]
[1770584450979,1.18790748,2104.6,2103.3,1.09787104]
[1770584451797,1.23517428,2104.6,2103.3,1.09787104]
[1770584451981,1.18783922,2104.7,2103.3,1.09787104]
[1770584452387,4.75089092,2104.9,2103.7,1.09787104]
[1770584452683,4.75089092,2104.9,2104.7,0.001]
[1770584452884,1.18770487,2104.9,2104.7,0.001]
[1770584453096,1.18770487,2104.9,2104.5,0.001]
[1770584453888,1.18753562,2105.2,2104.5,1.09887104]
[1770584454086,1.18736642,2105.5,2104.5,1.09887104]
[1770584454483,4.50635073,2105.6,2104.7,1.09787104]
[1770584455296,1.18731686,2105.6,2104.7,1.09787104]
[1770584455499,1.18728286,2105.7,2104.7,1.09787104]
[1770584455877,1.23454966,2105.7,2104.7,1.09787104]
[1770584456397,1.18728286,2105.7,2104.7,1.09787104]
[1770584456900,4.74835638,2106.0,2104.9,1.09787104]
[1770584456901,0.1024,2105.9,2104.9,1.09787104]
[1770584457196,4.74835638,2106.0,2104.9,1.09787104]
[1770584457900,0.0472668,2105.8,2104.9,1.09787104]
[1770584460905,1.18725364,2105.7,2104.9,2.28554895]
[1770584461222,1.18708452,2106.0,2105.0,1.09787104]
[1770584461521,1.0104989,2106.0,2104.8,2.28559045]
[1770584461680,0.0472668,2105.7,2105.0,1.09787104]
[1770584462184,1.18704855,2106.1,2105.0,1.09787104]
[1770584462504,1.23431535,2106.1,2105.0,1.09787104]
[1770584463294,1.23431535,2106.1,2105.2,1.09787104]
[1770584465006,1.18704855,2106.1,2105.2,1.09787104]
[1770584465306,0.002,2105.6,2105.2,1.09787104]
[1770584465506,0.002,2105.6,2105.3,1.09787104]
[1770584472509,0.002,2105.6,2105.4,1.09787104]
[1770584473187,0.002,2105.6,2105.2,1.09787104]
[1770584473796,0.002,2105.6,2105.3,1.09787104]
[1770584477506,0.002,2105.6,2105.0,2.30905888]
[1770584477811,0.002,2105.4,2105.1,1.12141389]
[1770584479089,0.002,2105.6,2105.2,1.12141389]
[1770584479294,0.002,2105.8,2105.2,1.12141389]
[1770584480399,0.002,2105.8,2105.3,2.3088931]
[1770584480601,0.002,2105.8,2105.3,1.12141389]
[1770584481492,0.002,2105.8,2105.1,1.12141389]
[1770584482607,1.18696349,2106.3,2105.2,1.12141389]
[1770584482813,1.18688271,2106.4,2105.3,1.12141389]
[1770584482999,0.002,2106.5,2105.4,1.12141389]
[1770584483204,1.18880639,2106.5,2105.4,1.12141389]
[1770584483599,0.002,2106.5,2105.4,1.12141389]
[1770584484819,0.002,2106.5,2105.6,1.12141389]
[1770584486906,0.002,2106.5,2105.8,1.12141389]
[1770584487104,0.002,2106.7,2105.9,1.12141389]
[1770584488923,0.002,2106.9,2106.1,1.12141389]
[1770584489904,0.002,2106.3,2106.1,1.12141389]
[1770584490104,0.002,2106.9,2106.1,1.12141389]
[1770584490740,0.002,2106.5,2106.1,1.12141389]
[1770584490906,0.002,2106.9,2106.1,1.12141389]
[1770584492232,0.002,2106.9,2106.2,1.18697179]
[1770584492416,0.002,2107.1,2106.3,1.12141389]
[1770584494003,0.002,2107.3,2106.4,1.12141389]
[1770584494203,0.002,2107.3,2106.6,1.12141389]
[1770584494409,0.002,2107.3,2106.8,1.12141389]
[1770584494830,0.002,2107.3,2106.7,1.18669008]
[1770584495018,0.002,2107.3,2106.7,2.30810397]
[1770584495533,0.002,2107.3,2106.8,1.12141389]
[1770584495714,0.002,2107.3,2106.6,2.30812982]
[1770584495910,0.002,2107.3,2106.6,1.18671593]
[1770584496133,0.002,2107.3,2106.7,1.12141389]
[1770584496506,0.002,2107.3,2106.9,1.12141389]
[1770584498810,0.002,2107.3,2107.0,1.12141389]
[1770584499607,1.53107971,2107.5,2106.7,1.12141389]
[1770584499812,2.520987,2107.5,2106.7,1.12141389]
[1770584500333,2.520987,2107.5,2106.7,2.30809676]
[1770584500717,2.520987,2107.5,2106.7,1.12141389]
[1770584500920,1.0376617,2107.1,2106.2,1.12141389]
[1770584501432,0.99088135,2107.2,2106.2,2.30838362]
[1770584501637,1.03814815,2107.1,2106.2,2.30838362]
[1770584502010,1.03814815,2107.1,2106.2,1.12141389]
[1770584502540,1.03814815,2107.1,2106.4,0.001]
[1770584502716,1.04014815,2107.1,2106.4,0.001]
[1770584503035,1.18652112,2107.0,2106.4,0.001]
[1770584504816,0.002,2107.1,2106.4,1.12241389]
[1770584505172,0.002,2107.1,2106.4,1.18782109]
[1770584505647,0.002,2107.1,2106.5,1.12318307]
[1770584506141,0.002,2107.1,2106.4,1.18785499]
[1770584506340,0.002,2107.1,2106.4,0.001]
[1770584508023,1.04382519,2107.1,2106.4,0.001]
[1770584508537,0.99655839,2107.1,2106.4,0.001]
[1770584508914,0.002,2107.1,2106.4,0.001]
[1770584510837,0.002,2107.1,2106.4,1.12418307]
[1770584512139,0.002,2107.1,2106.4,1.12301752]
[1770584512442,0.002,2107.1,2106.6,1.12318307]
[1770584515428,0.002,2107.1,2106.6,2.31089142]
[1770584515628,0.002,2106.9,2106.6,2.31089142]
[1770584517514,0.002,2106.9,2106.6,0.001]
[1770584519249,0.002,2107.3,2106.7,1.12318307]
[1770584519750,0.002,2107.3,2106.8,1.18663375]
[1770584520042,0.002,2107.3,2106.7,1.12318307]
[1770584520043,0.002,2107.3,2106.7,2.3098288]
[1770584520355,0.002,2107.3,2106.8,1.12318307]
[1770584522128,0.002,2107.3,2106.8,1.18658829]
[1770584522336,0.002,2107.3,2106.9,1.12318307]
[1770584524135,0.002,2107.3,2106.7,4.44018307]
[1770584525057,0.002,2107.3,2106.8,1.12318307]
[1770584525426,0.34483137,2107.5,2106.8,1.12318307]
[1770584525627,0.34483137,2107.5,2107.0,1.12318307]
[1770584525864,0.10309634,2107.5,2107.1,1.16918344]
[1770584526164,0.002,2107.7,2107.3,1.1863522]
[1770584526332,0.002,2107.8,2107.4,1.12318307]
[1770584526841,0.002,2108.2,2107.4,1.12318307]
[1770584527547,1.00547133,2108.2,2107.2,2.30955121]
[1770584527753,1.05073813,2108.1,2107.2,1.18636814]
[1770584527954,0.002,2107.3,2107.2,1.18636814]
[1770584529052,0.002,2107.3,2107.1,5.86900229]
[1770584529251,0.002,2107.3,2107.0,2.30968986]
[1770584530246,0.002,2107.3,2106.9,1.18656478]
[1770584530549,0.002,2107.3,2106.9,1.186537]
[1770584530849,0.002,2107.3,2107.0,1.18651651]
[1770584531055,0.002,2107.3,2106.9,1.18657743]
[1770584531833,0.002,2107.3,2106.9,2.3097605]
[1770584532426,0.002,2107.3,2107.0,1.12318307]
[1770584532672,1.18800193,2108.0,2107.0,1.12318307]
[1770584533759,0.002,2108.0,2107.2,1.12318307]
[1770584534263,0.002,2108.0,2107.1,1.1864648]
[1770584534750,0.002,2108.0,2107.2,1.12318307]
[1770584536035,0.002,2108.0,2107.2,2.30958938]
[1770584536238,0.002,2108.0,2107.3,1.13269076]
[1770584538562,0.002,2108.0,2107.3,2.3190125]
[1770584539467,0.002,2108.0,2107.4,1.13269076]
[1770584539650,0.002,2108.0,2107.4,0.001]
[1770584539850,0.002,2107.8,2107.4,0.001]
[1770584541969,0.002,2108.0,2107.5,1.13269076]
[1770584543866,0.002,2108.0,2107.7,1.13269076]
[1770584544951,0.002,2108.2,2107.7,1.13269076]
[1770584545645,0.002,2108.2,2107.7,2.31880131]
[1770584545969,0.002,2108.2,2107.6,1.18615447]
[1770584546170,0.002,2108.2,2107.7,2.31881074]
[1770584546362,0.002,2108.2,2107.8,1.13269076]
[1770584546672,0.002,2108.2,2107.6,1.18614242]
[1770584547275,0.002,2108.2,2107.6,1.18614689]
[1770584547453,0.002,2108.2,2107.6,2.31883765]
[1770584547974,0.002,2108.2,2107.7,1.13269076]
[1770584550071,0.002,2108.2,2107.8,1.18607078]
[1770584550278,0.002,2108.2,2107.9,1.13164148]
[1770584550450,0.002,2108.2,2107.9,1.13053973]
[1770584550893,0.002,2108.5,2107.9,1.13269076]
[1770584552377,0.002,2108.5,2108.1,1.13269076]
[1770584553446,0.002,2108.5,2107.7,4.74528313]
[1770584553447,0.002,2108.2,2107.7,1.13369076]
[1770584553949,0.002,2108.2,2107.8,1.13269076]
[1770584554547,0.002,2108.2,2107.8,2.31875761]
[1770584554771,0.002,2108.2,2107.9,1.13269076]
[1770584555976,0.002,2108.5,2107.9,1.13269076]
[1770584556564,0.002,2108.5,2108.1,1.13269076]
[1770584557980,1.01494527,2109.0,2108.1,1.13269076]
[1770584558468,1.01518596,2108.8,2107.9,1.13269076]
[1770584558867,1.01518596,2108.8,2107.9,2.31870046]
[1770584559471,1.18545213,2108.9,2108.0,1.13269076]
[1770584560378,2.20111529,2108.9,2108.0,1.13269076]
[1770584560588,1.01566316,2108.8,2108.0,1.13269076]
[1770584560958,1.01566316,2108.8,2107.9,1.18600964]
[1770584561584,1.01566316,2108.8,2107.8,1.13269076]
[1770584561790,1.01566316,2108.8,2107.7,0.001]
[1770584561961,1.01566316,2108.8,2107.7,1.18711766]
[1770584562379,1.01566316,2108.8,2107.8,2.31875968]
[1770584562563,1.01612304,2108.7,2107.8,2.31875968]
[1770584562881,1.01612304,2108.7,2107.8,1.13269076]
[1770584564192,1.18553064,2108.8,2107.8,1.13269076]
[1770584564489,1.01658846,2108.8,2107.8,1.13269076]
[1770584565259,1.01658846,2108.8,2107.7,0.001]
[1770584565456,1.01704072,2108.6,2107.7,0.001]
[1770584565890,1.01704072,2108.6,2108.1,0.001]
[1770584566474,1.18567702,2108.5,2108.1,0.001]
[1770584566675,1.01725567,2108.4,2108.1,0.001]
[1770584568080,1.18567702,2108.5,2108.1,0.001]
[1770584568481,4.74227761,2108.7,2108.1,0.001]
[1770584568682,1.18556456,2108.7,2108.1,0.001]
[1770584569088,1.13556456,2108.7,2108.1,0.001]
[1770584569863,2.20320984,2108.8,2108.1,0.001]
[1770584571577,1.01833055,2108.7,2108.1,0.001]
[1770584572894,1.01854093,2108.5,2108.1,0.001]
[1770584575571,1.01915895,2108.3,2107.5,0.001]
[1770584575797,1.01915895,2108.0,2107.4,0.001]
[1770584576371,1.01936044,2108.2,2107.4,0.001]
[1770584577095,1.01936044,2108.2,2107.4,1.20081791]
[1770584577774,1.18590199,2108.1,2107.4,1.20081791]
[1770584577980,1.12216035,2108.4,2107.4,1.20081791]
[1770584578295,0.0472668,2108.7,2107.5,1.19981791]
[1770584578296,0.1024,2108.5,2107.5,1.19981791]
[1770584578672,1.12216035,2108.5,2107.5,1.19981791]
[1770584578876,1.12216035,2108.5,2107.6,0.001]
[1770584579096,1.12416035,2108.5,2107.6,0.001]
[1770584579291,0.002,2108.5,2107.6,1.20081791]
[1770584579979,1.18767702,2108.5,2107.6,1.20081791]
[1770584581002,2.20800322,2108.5,2107.6,1.20081791]
[1770584581702,1.18767702,2108.5,2107.6,1.20081791]
[1770584583601,1.02068438,2108.4,2107.6,0.001]
[1770584584106,1.18578949,2108.3,2107.6,0.001]
[1770584584507,1.18772138,2108.5,2107.7,1.19981791]
[1770584585792,1.02103463,2108.4,2107.6,0.001]
[1770584586425,1.18578949,2108.3,2107.6,0.001]
[1770584586709,1.18578949,2108.3,2107.6,1.20081791]
[1770584587916,1.18577668,2108.4,2107.6,1.20081791]
[1770584588721,0.002,2108.5,2107.6,1.20081791]
[1770584590614,1.02388124,2108.5,2107.6,1.20081791]
[1770584591113,1.18573325,2108.4,2107.6,1.20081791]
[1770584591804,1.18573325,2108.4,2107.7,1.20081791]
[1770584592002,0.002,2108.2,2107.7,1.20081791]
[1770584593685,0.002,2108.2,2107.8,1.19981791]
[1770584595301,0.002,2108.2,2107.7,0.001]
[1770584595714,0.002,2108.2,2107.7,1.11988056]
[1770584597736,0.002,2108.2,2107.7,0.001]
[1770584598808,0.002,2108.2,2107.7,1.11988056]
[1770584604447,0.002,2108.2,2107.7,2.30600039]
[1770584604656,0.002,2108.2,2107.8,1.11888056]
[1770584604810,0.002,2108.0,2107.8,1.11888056]
[1770584605012,0.002,2108.2,2107.8,1.11888056]
[1770584606113,0.002,2108.2,2107.8,2.30494727]
[1770584606313,0.002,2108.2,2108.0,0.6]
[1770584606960,0.002,2108.2,2107.7,0.001]
[1770584607132,0.002,2108.2,2107.7,1.11988056]
[1770584610932,0.002,2108.2,2107.9,0.6]
[1770584611131,0.002,2108.2,2107.9,1.71888056]
[1770584611562,0.002,2108.2,2108.0,1.11888056]
[1770584616273,0.002,2108.5,2108.0,4.43288056]
[1770584616451,0.002,2108.5,2108.1,1.11888056]
[1770584617174,0.002,2108.2,2108.1,1.11888056]
[1770584617957,0.002,2108.2,2108.0,4.43288056]
[1770584618274,0.002,2108.2,2108.1,1.11888056]
[1770584621043,0.002,2108.2,2108.0,3.314]
[1770584621862,0.002,2108.2,2107.7,0.001]
[1770584622382,0.002,2108.2,2107.7,1.11988056]
[1770584622761,0.002,2108.2,2107.8,3.314]
[1770584622959,0.002,2108.2,2107.7,3.315]
[1770584623786,8.11290138,2108.1,2107.6,0.001]
[1770584624351,1.18593095,2108.1,2107.6,0.001]
[1770584625313,2.21480907,2108.1,2107.6,0.001]
[1770584626758,1.02896844,2107.9,2107.5,0.001]
[1770584628559,1.02896844,2107.9,2107.8,0.001]
[1770584628759,2.21500926,2107.9,2107.5,0.001]
[1770584631801,1.18604082,2107.9,2107.5,0.001]
[1770584632005,1.18604082,2107.9,2107.5,3.315]
[1770584634503,1.18604082,2107.9,2107.5,0.001]
[1770584636015,1.18799672,2108.0,2107.6,3.314]
[1770584636621,1.18799672,2108.0,2107.5,1.19049347]
[1770584636822,1.18796058,2108.0,2107.6,3.314]
[1770584637127,0.002,2108.0,2107.7,1.18949347]
[1770584637295,0.002,2108.5,2107.8,1.18949347]
[1770584637498,1.18768138,2108.5,2107.9,1.18949347]
[1770584637735,0.002,2108.5,2107.9,1.18949347]
[1770584639794,0.002,2108.5,2107.5,0.001]
[1770584639795,0.002,2108.5,2108.0,3.31]
[1770584639996,0.002,2108.5,2108.1,1.18949347]
[1770584640406,0.002,2108.5,2108.2,4.49949347]
[1770584640615,0.002,2108.5,2108.2,1.18949347]
[1770584640815,0.002,2108.5,2108.3,4.49949347]
[1770584641020,0.002,2108.5,2108.3,1.18949347]
[1770584641218,0.002,2108.5,2108.4,3.31]
[1770584641607,0.002,2108.5,2108.4,4.49949347]
[1770584641930,0.002,2108.5,2108.4,1.18949347]
[1770584642221,0.002,2108.7,2108.2,1.18949347]
[1770584642516,0.3259666,2108.8,2108.4,1.18949347]
[1770584643237,0.3259666,2108.8,2108.5,3.306]
[1770584643529,0.3259666,2108.8,2108.6,1.18949347]
[1770584643904,0.002,2109.1,2108.3,1.18949347]
[1770584644105,0.002,2109.1,2108.5,1.18949347]
[1770584644307,0.002,2109.1,2108.6,1.18949347]
[1770584644625,0.002,2109.1,2108.7,1.18949347]
[1770584645018,0.002,2109.1,2108.8,4.16752687]
[1770584645206,0.002,2109.1,2108.8,1.18949347]
[1770584645406,0.002,2109.1,2108.9,2.9780334]
[1770584646025,0.002,2109.1,2108.9,4.16752687]
[1770584646611,0.002,2109.1,2109.0,2.9780334]
[1770584646935,4.499987,2109.8,2109.1,1.18949347]
[1770584647438,10.66001597,2110.1,2109.3,1.18949347]
[1770584648401,10.66001597,2110.1,2109.4,2.9780334]
[1770584648612,9.62710081,2110.1,2109.4,4.16752687]
[1770584648811,9.62710081,2110.1,2109.5,1.18949347]
[1770584649028,1.51419943,2110.1,2109.5,1.18949347]
[1770584649409,1.51418247,2110.1,2109.6,4.16752687]
[1770584649609,0.32938514,2110.1,2109.6,1.18949347]
[1770584649806,1.51416778,2110.1,2109.7,4.16752687]
[1770584650101,0.32938514,2110.1,2109.7,4.16752687]
[1770584650740,1.51417443,2110.1,2109.7,2.9780334]
[1770584651028,0.32938514,2110.1,2109.7,2.9780334]
[1770584651430,0.32938514,2110.1,2109.7,4.16752687]
[1770584652537,0.32938514,2110.1,2109.8,1.18949347]
[1770584652721,0.002,2109.9,2109.8,1.18949347]
[1770584655241,0.33138514,2110.1,2109.8,1.18813099]
[1770584655536,0.33138514,2110.1,2109.9,2.9760334]
[1770584655831,0.33138514,2110.1,2109.7,2.37565293]
[1770584656039,0.33138514,2110.1,2109.7,1.19067828]
[1770584656715,0.33138514,2110.1,2109.8,4.16671168]
[1770584656919,0.33138514,2110.1,2109.8,1.19067828]
[1770584657927,0.33138514,2110.1,2109.9,2.9760334]
[1770584659502,2.55013012,2110.1,2109.3,0.001]
[1770584659721,1.03395459,2110.0,2109.5,2.84833456]
[1770584660632,1.03395459,2110.0,2109.3,0.001]
[1770584660831,1.0340312,2109.9,2109.0,0.001]
[1770584661605,2.21904268,2109.8,2109.0,0.001]
[1770584661808,1.03409624,2109.7,2109.0,0.001]
[1770584665840,2.32181086,2109.6,2108.7,1.19067828]
[1770584666841,2.32181086,2109.6,2109.2,0.001]
[1770584667133,2.32181086,2109.6,2108.7,1.19067828]
[1770584667134,0.002,2109.5,2108.7,1.19067828]
[1770584667343,0.002,2109.5,2109.0,0.001]
[1770584667520,0.002,2109.5,2109.0,1.19167828]
[1770584668255,1.03455213,2109.3,2108.2,1.18681911]
[1770584668538,1.03455213,2109.3,2108.4,1.19067828]
[1770584668714,4.34655213,2109.4,2108.4,1.19067828]
[1770584669123,4.34661789,2109.4,2108.4,1.19067828]
[1770584669525,3.312,2109.4,2108.4,1.19067828]
[1770584669730,1.18522732,2109.3,2108.4,1.19067828]
[1770584672113,1.18522732,2109.3,2108.5,1.19067828]
[1770584674648,1.18522732,2109.3,2108.6,1.19067828]
[1770584676845,1.25983497,2108.4,2107.7,0.001]
[1770584677023,1.21256817,2107.9,2107.5,0.001]
[1770584677223,1.21256817,2107.9,2107.0,0.001]
[1770584677540,1.21256817,2107.8,2107.0,0.001]
[1770584678121,1.21256817,2107.6,2106.6,0.001]
[1770584678450,1.21256817,2107.4,2106.6,0.001]
[1770584678842,1.1863522,2107.3,2106.6,0.001]
[1770584679040,1.21256817,2107.2,2106.6,0.001]
[1770584679229,1.21256817,2107.2,2106.4,0.001]
[1770584679848,1.25983497,2107.1,2106.3,0.001]
[1770584680049,1.21256817,2107.1,2106.3,0.001]
[1770584680751,1.21256817,2107.1,2107.0,0.001]
[1770584680946,1.21256817,2106.9,2106.3,0.001]
[1770584681148,1.21256817,2106.9,2106.2,0.001]
[1770584683155,1.18652112,2107.0,2106.2,0.001]
[1770584683457,1.18623962,2107.5,2106.4,1.17976782]
[1770584685428,0.002,2107.6,2106.6,0.99620746]
[1770584685737,1.1881879,2107.6,2106.6,0.99620746]
[1770584685953,0.002,2107.6,2106.6,0.99620746]
[1770584686126,1.18819108,2107.6,2106.6,0.99620746]
[1770584686562,1.18819108,2107.6,2106.6,0.99526284]
[1770584687561,0.002,2107.6,2106.6,0.99526284]
[1770584687771,0.002,2107.6,2106.8,0.99620746]
[1770584689974,0.002,2107.6,2107.0,0.99620746]
[1770584692081,0.002,2107.6,2107.1,5.49767226]
[1770584692578,0.002,2107.6,2107.2,0.99620746]
[1770584692903,0.002,2107.8,2107.2,0.99620746]
[1770584693264,0.002,2107.8,2107.1,3.315]
[1770584695573,0.002,2107.8,2107.3,0.99620746]
[1770584696975,0.002,2107.8,2107.1,4.50143327]
[1770584697180,0.002,2107.8,2107.1,5.49764073]
[1770584697394,0.002,2107.8,2107.2,0.99620746]
[1770584698378,0.002,2107.8,2107.3,2.18255966]
[1770584700672,0.002,2107.8,2107.1,3.315]
[1770584700855,0.92817636,2107.7,2106.8,0.001]
[1770584701055,0.92817636,2107.7,2106.8,4.25484901]
[1770584701269,0.92817636,2107.7,2106.8,4.25487273]
[1770584701467,0.92817636,2107.7,2106.8,3.06826497]
[1770584701860,0.93017636,2107.8,2106.8,3.06826497]
[1770584702060,0.93017636,2107.8,2106.9,3.06726497]
[1770584702552,2.11430341,2107.7,2106.9,3.06726497]
[1770584702754,0.92817636,2107.6,2106.9,3.06726497]
[1770584702971,1.18612705,2107.7,2106.9,3.06726497]
[1770584703175,0.92817636,2107.6,2106.9,3.06726497]
[1770584703361,1.18612705,2107.7,2106.9,3.06726497]
[1770584704378,1.18612705,2107.7,2106.9,4.25383451]
[1770584704681,4.74650823,2107.8,2106.9,4.25383451]
[1770584705184,5.67468459,2107.8,2106.9,3.06726497]
[1770584705560,5.67468459,2107.8,2107.4,0.001]
[1770584705760,0.002,2107.6,2107.4,0.001]
[1770584706268,0.002,2107.6,2107.1,0.001]
[1770584707158,0.93017636,2107.6,2107.1,0.001]
[1770584708960,1.18623962,2107.5,2107.1,0.001]
[1770584709167,1.18822285,2107.6,2107.1,0.001]
[1770584709783,0.002,2107.6,2107.1,0.001]
[1770584709968,1.18818433,2107.6,2107.1,0.001]
[1770584710293,1.18819051,2107.6,2107.1,0.001]
[1770584711080,0.002,2107.6,2107.1,0.001]
[1770584714797,0.002,2107.6,2107.1,0.99720746]
[1770584717294,0.002,2107.6,2107.2,2.16479516]
[1770584717876,0.002,2107.6,2107.3,0.001]
[1770584718298,0.002,2107.4,2107.3,0.001]
[1770584718483,0.002,2107.6,2107.3,0.97938666]
[1770584719598,0.002,2107.6,2107.3,2.16569569]
[1770584722782,0.002,2107.8,2107.4,0.97838666]
[1770584723287,0.002,2107.8,2107.3,1.18730903]
[1770584723487,0.002,2107.8,2107.4,0.97838666]
[1770584723806,0.002,2107.8,2107.4,0.97748801]
[1770584725102,0.002,2107.8,2107.4,1.18629023]
[1770584725303,0.002,2107.8,2107.4,2.16467689]
[1770584726979,0.002,2107.8,2107.5,0.97838666]
[1770584727180,0.002,2107.8,2107.6,1.18618333]
[1770584727381,0.002,2107.8,2107.6,2.16456999]
[1770584727592,0.002,2107.8,2107.6,0.97838666]
[1770584727793,0.002,2107.8,2107.5,1.18619487]
[1770584729217,1.18578949,2108.3,2107.6,0.97838666]
[1770584730393,1.18578949,2108.3,2107.6,0.97938666]
[1770584730795,0.9498418,2108.2,2107.6,0.001]
[1770584731107,0.002,2107.8,2107.6,0.001]
[1770584733716,0.002,2107.8,2107.7,0.97838666]
[1770584734106,0.002,2107.8,2107.6,0.001]
[1770584734514,0.002,2107.8,2107.7,0.97838666]
[1770584737121,0.9518418,2108.5,2107.8,0.97838666]
[1770584737122,2.13755936,2108.5,2107.8,0.97838666]
[1770584737302,1.18771756,2108.5,2107.8,0.97838666]
[1770584737622,0.9498418,2108.4,2107.6,1.1871458]
[1770584738124,0.9498418,2108.4,2107.6,1.18713901]
[1770584738425,0.9498418,2108.4,2107.7,1.1861234]
[1770584739524,2.13563129,2108.3,2107.6,1.18718333]
[1770584740023,2.13563129,2108.3,2107.6,2.16556999]
[1770584740199,1.18578949,2108.3,2107.6,1.18718333]
[1770584740405,0.9498418,2108.2,2107.6,0.001]
[1770584742112,2.13573043,2108.2,2107.6,0.001]
[1770584743219,0.9498418,2108.1,2107.6,0.001]
[1770584743425,1.18588863,2108.2,2107.6,0.001]
[1770584743601,1.18588863,2108.2,2107.8,0.001]
[1770584743801,2.13573043,2108.2,2107.8,0.001]